bitfinex-derivatives/quotes_ETHF0:USTF0_20250427
["timestamp","ask_amount","ask_price","bid_price","bid_amount"]
[1745742899048,2.82422,1810.0,1809.9,2.4916]
[1745742899253,1.10472,1810.0,1809.9,2.4916]
[1745742900144,1.10472,1810.0,1809.9,6.2136]
[1745742902254,1.10472,1810.0,1809.9,2.4916]
[1745742903955,1.10472,1810.0,1809.9,5.6994]
[1745742904151,1.10472,1810.0,1809.9,9.4214]
[1745742904854,4.76772,1810.0,1809.9,3.722]
[1745742905158,1.10485,1809.8,1809.7,0.8172]
[1745742905654,1.10503,1809.5,1809.4,4.0199]
[1745742905851,1.10501,1809.6,1809.4,4.8371]
[1745742906053,4.4647,1809.7,1809.4,4.8371]
[1745742906354,1.10503,1809.5,1809.4,8.5591]
[1745742906558,1.10501,1809.6,1809.4,8.5591]
[1745742907153,6.4055,1809.8,1809.5,2.66578]
[1745742907458,1.10491,1809.7,1809.6,1.5608]
[1745742909160,2.74251,1809.7,1809.6,1.5608]
[1745742911160,2.74251,1809.7,1809.4,4.8371]
[1745742911161,1.6376,1809.7,1809.4,4.8371]
[1745742911362,1.10497,1809.6,1809.5,1.6348]
[1745742912254,1.10497,1809.6,1809.5,5.3568]
[1745742913662,1.92037,1809.6,1809.5,5.3568]
[1745742914162,1.92037,1809.6,1809.5,1.6348]
[1745742914555,1.10503,1809.5,1809.4,4.8371]
[1745742915353,2.82723,1809.5,1809.4,4.8371]
[1745742916555,2.82723,1809.5,1809.4,4.025]
[1745742920468,2.82723,1809.5,1809.4,0.8172]
[1745742921268,1.10509,1809.4,1809.3,1.5703]
[1745742922166,1.10509,1809.4,1809.3,5.2923]
[1745742927071,3.2078,1809.9,1809.3,19.01319]
[1745742927278,1.10473,1810.0,1809.8,3.2078]
[1745742927475,2.4349,1810.1,1809.8,3.2078]
[1745742927476,3.53961,1810.1,1809.9,3.3196]
[1745742927674,3.53961,1810.1,1810.0,1.6046]
[1745742928277,1.10479,1809.9,1809.8,3.2078]
[1745742929071,1.10479,1809.9,1809.8,6.9298]
[1745742929868,2.67179,1809.9,1809.8,6.9298]
[1745742930177,4.76875,1810.0,1809.8,6.9298]
[1745742930378,3.664,1810.0,1809.9,1.6046]
[1745742930576,3.664,1810.0,1809.9,2.4276]
[1745742930777,4.76872,1810.0,1809.9,2.4276]
[1745742932473,3.664,1810.0,1809.9,2.4276]
[1745742932679,7.12781,1810.1,1809.9,2.4276]
[1745742932879,7.12781,1810.1,1810.0,1.7339]
[1745742934386,1.10472,1810.0,1809.9,0.823]
[1745742934587,2.78322,1810.0,1809.9,1.7222]
[1745742935781,1.10479,1809.9,1809.8,4.892]
[1745742936084,1.10479,1809.9,1809.8,5.7576]
[1745742936085,2.78329,1809.9,1809.8,5.7576]
[1745742943295,2.78329,1809.9,1809.8,2.5498]
[1745742947999,1.10485,1809.8,1809.7,3.2078]
[1745742948201,2.83065,1809.8,1809.7,4.7818]
[1745742948701,1.7258,1809.8,1809.7,4.7818]
[1745742948893,1.10484,1809.9,1809.7,4.7818]
[1745742949094,1.10484,1809.9,1809.8,1.5892]
[1745742949803,1.10484,1809.9,1809.7,6.9298]
[1745742950001,5.96862,1810.7,1809.7,22.23916]
[1745742950204,2.3824,1810.6,1810.0,3.2078]
[1745742950406,1.10458,1810.3,1810.1,43.1941]
[1745742950998,1.10458,1810.3,1810.2,1.5892]
[1745742951407,2.70168,1810.3,1810.2,1.5892]
[1745742952007,3.53888,1810.3,1810.2,1.5892]
[1745742954403,1.1046,1810.2,1810.0,44.0078]
[1745742954610,2.7704,1810.2,1810.0,44.0078]
[1745742955104,1.6658,1810.2,1810.1,1.5956]
[1745742955408,1.6658,1810.2,1810.1,2.4497]
[1745742955606,2.7704,1810.2,1810.1,2.4497]
[1745742955808,1.6658,1810.2,1810.1,2.4497]
[1745742956610,2.7704,1810.2,1810.1,2.4497]
[1745742957106,1.6658,1810.2,1810.1,2.4497]
[1745742957510,1.94178,1810.3,1810.1,2.4497]
[1745742957714,1.94178,1810.3,1810.2,2.3987]
[1745742957906,3.54108,1810.3,1810.2,2.3987]
[1745742958611,1.1046,1810.2,1810.1,0.8541]
[1745742958810,1.10466,1810.1,1810.0,46.447]
[1745742959405,2.70395,1810.2,1810.0,46.447]
[1745742959605,1.10466,1810.1,1810.0,46.447]
[1745742959806,2.70394,1810.2,1810.0,46.447]
[1745742960315,2.70394,1810.2,1810.1,1.6221]
[1745742960616,1.10466,1810.1,1810.0,44.8249]
[1745742960815,2.70396,1810.1,1810.0,46.447]
[1745742961608,1.5993,1810.1,1810.0,46.447]
[1745742961813,2.70396,1810.1,1810.0,46.447]
[1745742962509,2.70396,1810.1,1810.0,5.647]
[1745742963412,1.5993,1810.1,1809.8,0.85]
[1745742963612,3.55848,1810.0,1809.8,3.355]
[1745742963910,3.55848,1810.0,1809.9,1.6674]
[1745742964214,3.55848,1810.0,1809.9,5.3894]
[1745742964514,1.10478,1810.0,1809.9,5.3894]
[1745742966118,6.4356,1810.1,1809.9,5.3894]
[1745742966317,4.7487,1810.1,1810.0,1.6974]
[1745742966718,1.1047,1810.1,1810.0,1.6974]
[1745742968519,2.7409,1810.1,1810.0,1.6974]
[1745742969216,1.10472,1810.0,1809.9,3.2078]
[1745742969523,3.52332,1810.0,1809.9,3.2078]
[1745742971513,2.74092,1810.0,1809.9,3.2078]
[1745742972014,2.74092,1810.0,1809.9,4.0036]
[1745742972211,2.74092,1810.0,1809.9,5.7322]
[1745742973118,2.74092,1810.0,1809.9,2.5244]
[1745742975320,1.10479,1809.9,1809.8,3.2078]
[1745742975523,3.55799,1809.9,1809.8,3.2078]
[1745742976112,3.55799,1809.9,1809.8,4.8121]
[1745742979722,6.0982,1809.9,1809.6,0.7938]
[1745742979926,1.105,1809.6,1809.5,2.4666]
[1745742980324,1.105,1809.6,1809.5,43.2666]
[1745742980825,1.9667,1809.6,1809.5,2.4666]
[1745742982122,1.9667,1809.6,1809.5,6.1886]
[1745742982525,1.9667,1809.6,1809.5,3.722]
[1745742983218,1.10503,1809.5,1809.4,3.2078]
[1745742983421,2.76033,1809.5,1809.4,4.7729]
[1745742985421,1.10515,1809.3,1809.2,4.8305]
[1745742986222,1.10515,1809.3,1809.2,10.1508]
[1745742987726,1.97085,1809.3,1809.2,10.1508]
[1745742988332,1.97085,1809.3,1809.2,6.9298]
[1745742989023,1.97085,1809.3,1809.2,8.6374]
[1745742989223,1.97085,1809.3,1809.2,4.9154]
[1745742990026,5.61585,1809.3,1809.2,4.9154]
[1745742990426,5.61585,1809.3,1809.2,3.2078]
[1745742991029,5.61585,1809.3,1809.2,4.9154]
[1745742992633,4.75015,1809.3,1809.2,4.9154]
[1745743000344,4.75015,1809.3,1809.2,1.7076]
[1745743000944,3.645,1809.3,1809.2,1.7076]
[1745743001245,3.645,1809.3,1809.2,6.53481]
[1745743001947,4.75015,1809.3,1809.2,5.4296]
[1745743003646,3.645,1809.3,1809.2,6.53481]
[1745743004246,3.645,1809.3,1809.2,47.33481]
[1745743004944,4.75015,1809.3,1809.2,47.33481]
[1745743005247,3.645,1809.3,1809.2,47.33481]
[1745743006047,1.10513,1809.4,1809.2,47.33481]
[1745743006347,1.10513,1809.4,1809.3,2.5482]
[1745743008646,2.79338,1809.5,1809.3,3.65335]
[1745743008843,2.79338,1809.5,1809.4,2.3747]
[1745743009146,1.10493,1809.7,1809.5,1.10501]
[1745743009342,1.10493,1809.7,1809.6,5.6244]
[1745743009552,3.53948,1809.8,1809.6,6.72936]
[1745743009749,3.53948,1809.8,1809.7,1.6528]
[1745743009949,3.53948,1809.8,1809.7,2.4664]
[1745743010149,1.91078,1809.8,1809.7,2.4664]
[1745743010446,1.10488,1809.8,1809.7,2.4664]
[1745743010843,1.10485,1809.8,1809.7,2.4664]
[1745743011353,6.40933,1809.9,1809.7,6.1884]
[1745743011554,6.40933,1809.9,1809.8,1.6528]
[1745743016962,1.10485,1809.8,1809.7,4.0214]
[1745743017165,2.71965,1809.8,1809.7,5.7177]
[1745743017661,2.71965,1809.8,1809.7,2.5099]
[1745743017867,2.71965,1809.8,1809.7,5.7177]
[1745743018666,1.6148,1809.8,1809.7,6.82261]
[1745743018965,4.74982,1809.9,1809.7,6.82261]
[1745743019263,3.2078,1810.3,1809.9,1.10479]
[1745743019468,1.10467,1810.1,1810.0,2.5043]
[1745743019765,1.10467,1810.1,1810.0,0.8147]
[1745743020369,1.10463,1810.2,1810.0,1.91942]
[1745743020569,1.10463,1810.2,1810.0,0.8147]
[1745743020868,1.10466,1810.1,1810.0,0.8147]
[1745743021069,2.82575,1810.2,1810.0,1.91942]
[1745743021268,2.82575,1810.2,1810.0,5.64142]
[1745743021972,1.10466,1810.1,1810.0,4.5367]
[1745743025573,1.10466,1810.1,1810.0,3.722]
[1745743025767,4.74766,1810.1,1810.0,3.722]
[1745743026170,1.10479,1809.9,1809.8,46.758]
[1745743026472,1.10485,1809.8,1809.7,3.2078]
[1745743026672,1.6712,1809.8,1809.7,3.2078]
[1745743027175,1.6712,1809.8,1809.7,6.9298]
[1745743028279,2.77605,1809.8,1809.7,6.9298]
[1745743029165,2.77605,1809.8,1809.7,3.2078]
[1745743035280,1.10491,1809.7,1809.6,44.0078]
[1745743038285,1.10491,1809.7,1809.6,3.2078]
[1745743038489,1.10497,1809.6,1809.5,5.3698]
[1745743038678,2.67377,1809.6,1809.5,5.3698]
[1745743040382,2.67377,1809.6,1809.5,1.6478]
[1745743041287,2.67377,1809.6,1809.5,5.3698]
[1745743043586,2.67377,1809.6,1809.5,4.5817]
[1745743045387,2.67377,1809.6,1809.5,0.8597]
[1745743046290,2.67377,1809.6,1809.5,4.5817]
[1745743048691,2.67377,1809.6,1809.5,3.722]
[1745743049095,1.10503,1809.5,1809.4,0.8383]
[1745743049295,2.69173,1809.5,1809.4,0.8383]
[1745743049985,1.10509,1809.4,1809.3,40.8]
[1745743050387,1.5867,1809.5,1809.2,4.8373]
[1745743050587,1.10515,1809.3,1809.2,4.8373]
[1745743050789,1.91113,1809.4,1809.2,4.8373]
[1745743050990,1.91113,1809.4,1809.2,45.6373]
[1745743051190,1.91113,1809.4,1809.2,49.3593]
[1745743051997,1.91113,1809.4,1809.2,50.46451]
[1745743052293,1.91113,1809.4,1809.3,1.6278]
[1745743053188,1.91113,1809.4,1809.3,5.3498]
[1745743053796,1.10513,1809.4,1809.3,5.3498]
[1745743054600,1.10507,1809.5,1809.3,6.45494]
[1745743054898,1.10502,1809.6,1809.4,2.74079]
[1745743055196,1.10502,1809.6,1809.5,3.2365]
[1745743057096,1.10502,1809.6,1809.5,6.9585]
[1745743058201,1.10502,1809.6,1809.5,3.2365]
[1745743058798,1.10497,1809.6,1809.5,2.4265]
[1745743061297,1.10509,1809.4,1809.3,4.0455]
[1745743061501,1.10509,1809.4,1809.3,3.2078]
[1745743061897,2.73039,1809.4,1809.3,3.2078]
[1745743063996,4.35319,1809.4,1809.3,3.2078]
[1745743065096,1.10515,1809.3,1809.2,2.44]
[1745743065296,2.77445,1809.3,1809.2,2.44]
[1745743065492,2.77445,1809.3,1809.2,5.6478]
[1745743066204,2.77445,1809.3,1809.2,9.3698]
[1745743066600,1.6693,1809.3,1809.2,9.3698]
[1745743067004,2.73043,1809.4,1809.2,9.3698]
[1745743067302,1.10515,1809.3,1809.2,8.5564]
[1745743068204,3.59083,1809.4,1809.2,9.66161]
[1745743068505,1.10513,1809.4,1809.2,9.66161]
[1745743068800,1.10513,1809.4,1809.2,8.5564]
[1745743069406,2.83563,1809.4,1809.2,8.5564]
[1745743070305,2.83563,1809.4,1809.2,4.8344]
[1745743070506,2.83563,1809.4,1809.2,5.93961]
[1745743070705,2.83563,1809.4,1809.2,4.8344]
[1745743072108,2.83563,1809.4,1809.2,8.5564]
[1745743072308,1.10515,1809.3,1809.2,8.5564]
[1745743073810,1.90515,1809.3,1809.2,8.5564]
[1745743075812,1.90515,1809.3,1809.2,5.3486]
[1745743076114,1.90515,1809.3,1809.2,8.5564]
[1745743076909,1.90515,1809.3,1809.2,9.66161]
[1745743078308,1.90515,1809.3,1809.2,8.5564]
[1745743078710,0.8,1809.3,1809.2,9.66161]
[1745743079213,1.90515,1809.3,1809.2,8.5564]
[1745743079904,3.63595,1809.3,1809.2,8.5564]
[1745743081608,3.63595,1809.3,1809.2,9.66161]
[1745743081813,3.63595,1809.3,1809.2,8.5564]
[1745743082111,3.63595,1809.3,1809.2,9.66161]
[1745743082306,1.10515,1809.3,1809.2,11.28951]
[1745743083917,1.10515,1809.3,1809.2,10.1843]
[1745743085517,1.10515,1809.3,1809.2,9.3822]
[1745743085811,1.10515,1809.3,1809.2,6.9298]
[1745743086215,1.10515,1809.3,1809.2,3.2078]
[1745743086409,1.10515,1809.3,1809.2,4.838]
[1745743086612,1.10515,1809.3,1809.2,5.6263]
[1745743086815,1.10515,1809.3,1809.2,6.4617]
[1745743087116,1.10515,1809.3,1809.2,10.1837]
[1745743088212,1.10515,1809.3,1809.2,6.4617]
[1745743092615,3.2078,1809.5,1809.2,11.4617]
[1745743092919,1.10468,1810.1,1809.8,1.10483]
[1745743093220,16.5690297,1810.3,1810.0,3.2078]
[1745743093221,2.80265,1810.2,1810.0,3.2078]
[1745743093521,2.80265,1810.2,1810.1,1.7115]
[1745743095527,16.5690297,1810.3,1810.2,1.1046]
[1745743095715,16.5690297,1810.3,1810.2,4.3124]
[1745743096118,16.5690297,1810.3,1810.2,8.0344]
[1745743096925,16.5690297,1810.3,1810.2,48.8344]
[1745743097223,16.5690297,1810.3,1810.2,50.5102]
[1745743097427,19.3252243,1810.5,1810.2,50.5102]
[1745743097428,1.10444,1810.5,1810.2,50.5102]
[1745743097624,1.10442,1810.5,1810.4,3.2078]
[1745743099822,1.94528,1810.6,1810.4,3.2078]
[1745743100228,1.94528,1810.6,1810.4,4.8457]
[1745743101727,1.10442,1810.5,1810.4,4.8457]
[1745743101929,1.10442,1810.5,1810.4,3.2078]
[1745743102520,4.74632,1810.7,1810.4,5.99575]
[1745743102716,3.642,1810.7,1810.5,1.6835]
[1745743103025,0.7855,1810.8,1810.5,2.5448]
[1745743103225,4.5028,1811.0,1810.6,3.2078]
[1745743103526,4.4373,1811.0,1810.9,1.10418]
[1745743103926,4.4373,1811.0,1810.9,1.6835]
[1745743104433,1.90141,1811.0,1810.9,1.6835]
[1745743105317,0.7973,1811.0,1810.9,1.6835]
[1745743105523,1.1041,1811.1,1810.9,1.6835]
[1745743105723,1.1041,1811.1,1810.9,2.5186]
[1745743105925,1.10411,1811.0,1810.9,2.5186]
[1745743107033,1.10409,1811.1,1810.9,2.5186]
[1745743108034,1.10409,1811.1,1811.0,3.2078]
[1745743108234,1.10409,1811.1,1811.0,4.858]
[1745743112338,2.82189,1811.1,1811.0,4.858]
[1745743116239,2.82189,1811.1,1811.0,3.2078]
[1745743117532,1.10418,1810.9,1810.8,4.9043]
[1745743117740,1.1043,1810.7,1810.6,3.2078]
[1745743118042,2.76047,1810.9,1809.4,18.30194628]
[1745743118043,1.10448,1810.4,1810.3,6.5162]
[1745743118632,1.10448,1810.4,1810.3,4.9043]
[1745743118936,0.8211,1810.4,1810.1,3.2078]
[1745743119241,1.1046,1810.2,1810.1,3.2078]
[1745743119442,1.1046,1810.2,1810.1,4.8533]
[1745743120144,2.3986,1810.3,1810.1,4.8533]
[1745743120145,3.50318,1810.3,1810.1,4.8533]
[1745743120448,2.71798,1810.3,1810.2,1.6455]
[1745743120644,1.92561,1810.4,1810.2,1.6455]
[1745743121443,3.51531,1810.4,1810.2,1.6455]
[1745743121650,1.10451,1810.4,1810.3,3.2078]
[1745743122749,1.10454,1810.3,1810.2,1.6455]
[1745743123343,1.1046,1810.2,1810.1,3.2078]
[1745743124054,2.7782,1810.2,1810.1,3.2078]
[1745743124254,6.5002,1810.2,1810.1,3.2078]
[1745743125251,2.7782,1810.2,1810.1,3.2078]
[1745743131163,6.5002,1810.2,1810.1,3.2078]
[1745743134562,1.10472,1810.0,1809.9,1.6859]
[1745743134869,1.10472,1810.0,1809.9,4.8937]
[1745743136867,1.10472,1810.0,1809.9,5.6952]
[1745743138571,1.10472,1810.0,1809.9,2.4874]
[1745743138765,1.10472,1810.0,1809.9,5.6952]
[1745743139571,1.10472,1810.0,1809.9,2.4874]
[1745743139774,1.10472,1810.0,1809.9,5.6952]
[1745743140366,2.70092,1810.0,1809.9,5.6952]
[1745743141372,1.5962,1810.0,1809.7,3.2078]
[1745743141675,1.5962,1810.0,1809.6,2.5051]
[1745743141676,1.10491,1809.7,1809.6,2.5051]
[1745743143483,2.76381,1809.7,1809.6,2.5051]
[1745743145473,1.10491,1809.7,1809.6,2.5051]
[1745743146183,2.67671,1809.7,1809.6,2.5051]
[1745743147879,1.10491,1809.7,1809.6,2.5051]
[1745743148581,2.82061,1809.7,1809.6,2.5051]
[1745743149880,1.10497,1809.6,1809.5,3.2078]
[1745743150279,0.27627888,1810.2,1809.5,61.36625]
[1745743150577,0.27627888,1810.2,1810.1,3.2078]
[1745743151385,0.27627888,1810.3,1810.1,3.2078]
[1745743151881,0.27627888,1810.3,1810.1,4.31246]
[1745743153574,0.27627888,1810.3,1810.2,2.4654]
[1745743154381,1.38081888,1810.3,1810.2,2.4654]
[1745743154581,0.27627888,1810.3,1810.2,2.4654]
[1745743155883,1.38081888,1810.3,1810.2,2.4654]
[1745743156181,0.27627888,1810.3,1810.2,2.4654]
[1745743156483,1.38081888,1810.3,1810.2,2.4654]
[1745743157581,1.38081888,1810.3,1810.2,7.4654]
[1745743157881,1.10451,1810.4,1810.2,8.56996]
[1745743158082,1.10451,1810.4,1810.3,4.8863]
[1745743159583,1.10446,1810.5,1810.3,4.8863]
[1745743159785,1.38073888,1810.5,1810.4,1.7134]
[1745743160187,0.27627888,1810.5,1810.4,2.81788]
[1745743160783,0.27627888,1810.7,1810.6,1.10436]
[1745743160988,0.27627888,1810.7,1810.6,3.2078]
[1745743161279,0.27627888,1810.7,1810.6,4.31216]
[1745743161486,0.27627888,1810.7,1810.6,6.84356]
[1745743162392,0.27627888,1810.9,1810.8,1.10424]
[1745743162587,0.27627888,1810.9,1810.8,4.31204]
[1745743162890,0.27627888,1811.0,1810.9,1.10418]
[1745743163076,0.27627888,1811.0,1810.9,2.66558]
[1745743164489,1.10409,1811.1,1810.9,2.66558]
[1745743164490,0.27627888,1811.1,1811.0,1.10411]
[1745743164687,0.27627888,1811.1,1811.0,5.87331]
[1745743165294,0.27627888,1811.2,1811.1,1.10405]
[1745743165483,0.27627888,1811.2,1811.1,2.73645]
[1745743165684,0.27627888,1811.2,1811.1,42.4324]
[1745743166991,1.38026888,1811.2,1811.1,42.4324]
[1745743167192,3.10256888,1811.2,1811.1,42.4324]
[1745743168282,3.10256888,1811.2,1811.1,1.6324]
[1745743168785,1.10405,1811.1,1811.0,44.0078]
[1745743168986,1.86297888,1811.1,1811.0,44.0078]
[1745743169789,1.86297888,1811.1,1811.0,45.6755]
[1745743169990,2.96702888,1811.1,1811.0,45.6755]
[1745743170394,1.86297888,1811.1,1811.0,45.6755]
[1745743171293,1.86297888,1811.1,1811.0,46.77961]
[1745743171796,2.96702888,1811.1,1811.0,45.6755]
[1745743172289,1.86297888,1811.1,1811.0,45.6755]
[1745743172597,0.27627888,1811.1,1811.0,46.77961]
[1745743172790,1.38032888,1811.1,1811.0,45.6755]
[1745743174495,1.38032888,1811.1,1811.0,44.0078]
[1745743175190,3.03842888,1811.1,1811.0,44.0078]
[1745743176702,1.10418,1810.9,1810.8,4.0195]
[1745743176896,1.38045888,1810.9,1810.8,4.0195]
[1745743177203,1.38045888,1810.9,1810.8,44.8195]
[1745743177495,3.03855888,1810.9,1810.8,44.8195]
[1745743177695,3.03855888,1810.9,1810.8,4.0195]
[1745743182897,3.84105888,1810.9,1810.8,3.2078]
[1745743183098,1.38063888,1810.6,1810.5,6.8428]
[1745743183502,1.38063888,1810.6,1810.5,47.6428]
[1745743186604,1.38063888,1810.6,1810.5,3.2078]
[1745743190805,2.20203888,1810.6,1810.5,3.2078]
[1745743194308,3.05163888,1810.6,1810.5,3.2078]
[1745743194709,1.09767888,1810.6,1810.5,4.31222]
[1745743195011,1.09767888,1810.6,1810.5,4.8385]
[1745743195212,3.83063888,1810.6,1810.5,4.8385]
[1745743196914,3.83063888,1810.6,1810.5,3.2078]
[1745743200615,1.10448,1810.4,1810.3,4.0714]
[1745743201009,1.38075888,1810.4,1810.3,4.0714]
[1745743201214,2.96605888,1810.4,1810.3,5.7125]
[1745743203517,1.38075888,1810.4,1810.3,5.7125]
[1745743203718,0.27627888,1810.4,1810.3,5.7125]
[1745743203919,0.27627888,1810.6,1810.3,16.6705]
[1745743204218,1.10411,1811.1,1810.8,1.10422]
[1745743204416,0.27627888,1811.0,1810.9,47.2778]
[1745743204618,0.27627888,1811.0,1810.9,48.38198]
[1745743205122,0.27627888,1811.0,1810.9,52.10398]
[1745743205527,0.27627888,1811.0,1810.9,50.9998]
[1745743205818,1.10389,1811.4,1810.9,57.10398]
[1745743206020,1.93465,1811.5,1811.3,3.2078]
[1745743206227,1.93465,1811.5,1811.4,2.4958]
[1745743206918,0.8308,1811.5,1811.1,4.31185]
[1745743207118,1.10393,1811.3,1811.2,0.8047]
[1745743207417,1.10393,1811.3,1811.2,2.4958]
[1745743209128,1.5734,1811.4,1811.2,2.4958]
[1745743209320,2.67727,1811.4,1811.3,3.2078]
[1745743209928,1.10387,1811.4,1811.3,4.8424]
[1745743210125,1.10387,1811.4,1811.3,3.2078]
[1745743210425,2.78747,1811.4,1811.3,3.2078]
[1745743210623,2.78747,1811.4,1811.3,4.8424]
[1745743211830,1.10387,1811.4,1811.3,4.8424]
[1745743213431,1.10385,1811.5,1811.3,5.94633]
[1745743213626,1.10385,1811.5,1811.4,1.63]
[1745743215834,1.10387,1811.4,1811.3,3.2078]
[1745743216020,2.68177,1811.4,1811.3,3.2078]
[1745743217933,2.68177,1811.4,1811.3,4.7959]
[1745743218535,1.10379,1811.6,1811.4,1.10387]
[1745743218725,1.10379,1811.6,1811.4,2.69197]
[1745743218925,2.73749,1811.6,1811.5,2.4222]
[1745743219625,2.73749,1811.6,1811.5,0.8341]
[1745743219825,1.10387,1811.4,1811.3,4.7959]
[1745743220027,1.10387,1811.4,1811.3,5.63]
[1745743221335,1.10387,1811.4,1811.3,4.0419]
[1745743221638,1.10387,1811.4,1811.3,3.2078]
[1745743222528,2.70207,1811.4,1811.3,3.2078]
[1745743224231,6.42407,1811.4,1811.3,3.2078]
[1745743225534,1.10399,1811.2,1811.1,0.8385]
[1745743225932,1.10403,1811.2,1811.0,4.31191]
[1745743226130,1.10389,1811.4,1811.3,1.10393]
[1745743226337,1.10389,1811.4,1811.3,4.31173]
[1745743226728,1.10389,1811.4,1811.3,3.2078]
[1745743227035,2.69129,1811.4,1811.3,3.2078]
[1745743227236,2.69129,1811.4,1811.3,4.8859]
[1745743230540,2.69129,1811.4,1811.3,1.6781]
[1745743230730,2.69129,1811.4,1811.3,4.8859]
[1745743231642,2.69129,1811.4,1811.3,5.98983]
[1745743231941,1.5874,1811.4,1811.3,5.98983]
[1745743232237,1.90835,1811.5,1811.3,5.98978]
[1745743232436,1.90835,1811.5,1811.4,1.6015]
[1745743232626,1.90835,1811.5,1811.4,3.55727]
[1745743232826,1.90835,1811.5,1811.4,2.4534]
[1745743233939,0.8045,1811.5,1811.4,3.55727]
[1745743234338,1.10379,1811.6,1811.4,3.55727]
[1745743234640,1.10379,1811.6,1811.5,1.6015]
[1745743234840,1.10379,1811.6,1811.5,2.70531]
[1745743235037,1.10379,1811.6,1811.5,1.6015]
[1745743235339,2.67209,1811.6,1811.5,1.6015]
[1745743237040,2.67209,1811.6,1811.5,4.8093]
[1745743241041,1.10387,1811.4,1811.3,9.1658]
[1745743241241,1.10399,1811.2,1811.1,4.0671]
[1745743241840,4.82579,1811.6,1811.1,4.0671]
[1745743241841,3.722,1811.6,1811.1,10.6281]
[1745743242035,6.43246,1811.6,1811.5,3.2078]
[1745743242238,2.71046,1811.6,1811.5,3.2078]
[1745743242545,2.71046,1811.6,1811.5,5.5533]
[1745743243046,2.71046,1811.6,1811.5,3.9923]
[1745743244444,1.10376,1811.6,1811.5,3.9923]
[1745743245646,1.10376,1811.6,1811.5,3.2078]
[1745743247747,2.76422,1811.7,1811.5,3.2078]
[1745743247937,2.76422,1811.7,1811.5,4.31161]
[1745743248138,2.76422,1811.7,1811.5,6.03171]
[1745743248651,1.10375,1811.6,1811.5,4.9279]
[1745743248943,2.73995,1811.6,1811.5,4.9279]
[1745743249546,2.73995,1811.6,1811.5,3.2078]
[1745743252549,2.73995,1811.6,1811.5,4.8857]
[1745743252852,2.73995,1811.6,1811.5,3.2078]
[1745743255048,1.10387,1811.4,1811.3,3.2078]
[1745743255648,2.81597,1811.4,1811.3,3.2078]
[1745743256356,2.81597,1811.4,1811.3,4.0681]
[1745743257654,1.7121,1811.4,1811.3,4.0681]
[1745743257852,1.7121,1811.4,1811.3,6.88053]
[1745743258059,0.8476,1811.5,1811.4,1.10387]
[1745743258250,2.75569,1811.6,1811.5,1.10381]
[1745743258453,2.75569,1811.6,1811.5,4.31161]
[1745743258950,2.75569,1811.6,1811.5,6.02011]
[1745743259257,1.6519,1811.6,1811.5,6.02011]
[1745743259452,2.75565,1811.6,1811.5,6.02011]
[1745743259652,2.75565,1811.6,1811.5,4.9163]
[1745743260351,1.6519,1811.6,1811.5,6.02011]
[1745743260559,2.76766,1811.8,1811.7,1.10369]
[1745743260855,3.56286,1811.8,1811.7,4.31149]
[1745743261255,2.4592,1811.8,1811.7,4.31149]
[1745743261651,2.4592,1811.8,1811.7,5.98829]
[1745743262658,3.56283,1811.8,1811.7,4.8846]
[1745743262960,3.56283,1811.8,1811.7,3.2078]
[1745743263259,3.56283,1811.8,1811.6,0.8244]
[1745743263260,1.10369,1811.7,1811.6,0.8244]
[1745743263460,2.68009,1811.7,1811.6,0.8244]
[1745743264762,1.10375,1811.6,1811.5,3.2078]
[1745743264952,2.68015,1811.6,1811.5,3.2078]
[1745743266557,2.68015,1811.6,1811.5,4.31161]
[1745743266760,1.5764,1811.6,1811.5,5.95721]
[1745743267358,3.50506,1811.8,1811.6,1.10371]
[1745743267557,1.10369,1811.7,1811.6,3.54631]
[1745743267753,2.67309,1811.7,1811.6,0.797]
[1745743268056,1.10375,1811.6,1811.5,3.2078]
[1745743268260,3.51635,1811.6,1811.5,3.2078]
[1745743271264,1.10381,1811.5,1811.4,4.072]
[1745743271466,3.60021,1811.5,1811.4,4.072]
[1745743271858,3.60021,1811.5,1811.4,3.2078]
[1745743272760,3.60021,1811.5,1811.2,5.6012]
[1745743272761,1.10393,1811.3,1811.2,5.6012]
[1745743272963,1.10393,1811.3,1811.2,3.9997]
[1745743274558,1.10393,1811.3,1811.2,3.2078]
[1745743274762,1.93723,1811.3,1811.2,3.2078]
[1745743275768,1.10393,1811.3,1811.2,3.2078]
[1745743277870,1.10405,1811.1,1811.0,3.2078]
[1745743278569,1.10418,1810.9,1810.8,4.0552]
[1745743278965,1.10418,1810.9,1810.8,44.8552]
[1745743279864,1.10418,1810.9,1810.8,44.0078]
[1745743280371,1.94878,1810.9,1810.8,44.0078]
[1745743281071,3.56028,1810.9,1810.8,44.0078]
[1745743282463,3.56028,1810.9,1810.8,3.2078]
[1745743284472,2.4561,1810.9,1810.8,4.31204]
[1745743284664,2.4561,1810.9,1810.8,5.87454]
[1745743285069,3.56028,1810.9,1810.8,4.7703]
[1745743285472,2.4561,1810.9,1810.8,5.87454]
[1745743286181,3.56028,1810.9,1810.8,5.87454]
[1745743286585,3.56028,1810.9,1810.8,2.66674]
[1745743286985,3.56028,1810.9,1810.7,4.31206]
[1745743287187,3.56028,1810.9,1810.7,5.87456]
[1745743288285,3.56028,1810.9,1810.8,1.6033]
[1745743288787,3.56028,1810.9,1810.8,2.70754]
[1745743288982,2.4561,1810.9,1810.8,2.70754]